bitfinex/quotes_SOLUSD_20250313
["timestamp","ask_amount","ask_price","bid_price","bid_amount"]
[1741828643049,43.05633646,126.63,126.59,35.12923646]
[1741828643050,0.03,126.63,126.59,35.12923646]
[1741828643244,0.03,126.63,126.6,35.12923646]
[1741828644832,35.15923646,126.63,126.58,42.34923646]
[1741828645152,35.12923646,126.62,126.57,36.70223646]
[1741828645541,35.15923646,126.63,126.57,36.70223646]
[1741828645955,0.03,126.63,126.58,35.12923646]
[1741828646261,0.03,126.63,126.59,35.12923646]
[1741828647064,0.03,126.63,126.6,35.12923646]
[1741828648038,0.03,126.63,126.57,340.26491043]
[1741828648039,0.03,126.63,126.59,35.12923646]
[1741828649571,35.15923646,126.63,126.58,35.12923646]
[1741828649872,35.12923646,126.62,126.57,1.573]
[1741828650058,35.12923646,126.61,126.57,1.573]
[1741828650259,35.12923646,126.59,126.56,0.063]
[1741828651576,7.9001,126.58,126.56,0.063]
[1741828652367,35.12923646,126.59,126.56,0.063]
[1741828652580,35.12923646,126.61,126.56,35.19223646]
[1741828652781,43.02683646,126.62,126.56,35.19223646]
[1741828653770,43.02683646,126.62,126.56,43.09343646]
[1741828654078,35.15923646,126.63,126.57,35.12923646]
[1741828654261,0.03,126.63,126.59,35.12923646]
[1741828654450,35.15923646,126.63,126.58,35.12923646]
[1741828655563,35.15923646,126.63,126.58,43.02873646]
[1741828655950,43.05643646,126.63,126.58,43.02873646]
[1741828656869,43.05643646,126.63,126.58,35.12923646]
[1741828658081,43.05643646,126.63,126.57,35.12923646]
[1741828658264,35.15923646,126.63,126.58,35.12923646]
[1741828658572,0.03,126.63,126.58,35.12923646]
[1741828658780,0.03,126.63,126.56,11.92881765]
[1741828659071,0.03,126.63,126.58,35.12923646]
[1741828659475,0.03,126.63,126.58,43.02893646]
[1741828659873,0.03,126.63,126.59,35.12923646]
[1741828660279,35.15923646,126.63,126.58,35.12923646]
[1741828661358,35.12923646,126.61,126.57,42.34923646]
[1741828661559,35.15923646,126.63,126.57,42.34923646]
[1741828661770,43.02683646,126.62,126.57,42.34923646]
[1741828662262,43.02683646,126.62,126.57,7.22]
[1741828662462,43.02683646,126.62,126.57,42.34923646]
[1741828663869,35.12923646,126.61,126.56,35.19223646]
[1741828664072,35.12923646,126.59,126.56,0.063]
[1741828664252,21.97234045,126.58,126.56,0.063]
[1741828664586,35.00386157,126.62,126.56,0.063]
[1741828664587,21.97234045,126.59,126.56,0.063]
[1741828664885,21.97234045,126.6,126.56,0.063]
[1741828665589,29.87184045,126.59,126.56,0.063]
[1741828665889,49.62054045,126.59,126.56,0.063]
[1741828667693,7.9007,126.57,126.56,0.063]
[1741828668084,29.87304045,126.57,126.56,0.063]
[1741828669195,7.9007,126.57,126.56,0.063]
[1741828669602,29.87304045,126.57,126.56,0.063]
[1741828670512,7.9007,126.57,126.56,0.063]
[1741828674116,41.72104045,126.59,126.56,0.063]
[1741828674321,29.87244045,126.58,126.56,0.063]
[1741828674611,21.97234045,126.57,126.56,0.063]
[1741828676416,29.87304045,126.57,126.56,0.063]
[1741828681107,29.87304045,126.57,126.52,6.5098]
[1741828681307,21.97234045,126.54,126.51,0.063]
[1741828683009,7.9032,126.53,126.51,0.063]
[1741828683708,29.87554045,126.53,126.51,0.063]
[1741828685115,21.97234045,126.52,126.51,0.063]
[1741828685501,21.97234045,126.52,126.49,0.063]
[1741828685703,21.97234045,126.5,126.49,0.063]
[1741828686325,0.14216157,126.48,126.4,68.28504241]
[1741828686527,21.97234045,126.44,126.4,62.19724241]
[1741828686825,21.97234045,126.44,126.39,1.5822]
[1741828687119,29.88114045,126.44,126.39,1.5822]
[1741828687424,29.88114045,126.44,126.39,23.55454045]
[1741828687728,21.97234045,126.45,126.39,23.55454045]
[1741828687905,21.97234045,126.46,126.41,21.97234045]
[1741828688105,21.97234045,126.47,126.42,21.97234045]
[1741828688297,21.97234045,126.46,126.41,21.97234045]
[1741828688506,21.97234045,126.45,126.39,23.55454045]
[1741828688703,21.97234045,126.44,126.39,23.55454045]
[1741828688917,21.97234045,126.45,126.39,23.55454045]
[1741828689300,21.97234045,126.44,126.39,1.5822]
[1741828689719,21.97234045,126.45,126.39,23.55454045]
[1741828689926,21.97234045,126.44,126.39,23.55454045]
[1741828690301,21.97234045,126.44,126.39,1.5822]
[1741828690509,21.97234045,126.44,126.39,23.55454045]
[1741828690827,21.97234045,126.47,126.41,21.97234045]
[1741828691211,21.97234045,126.46,126.41,21.97234045]
[1741828691400,21.97234045,126.44,126.39,23.55454045]
[1741828691604,21.97234045,126.44,126.39,1.5822]
[1741828691905,21.97234045,126.44,126.39,23.55454045]
[1741828692822,21.97234045,126.45,126.39,23.55454045]
[1741828693020,21.97234045,126.44,126.39,23.55454045]
[1741828693826,21.97234045,126.45,126.39,31.46644045]
[1741828694021,21.97234045,126.46,126.4,21.97234045]
[1741828694201,21.97234045,126.45,126.4,21.97234045]
[1741828694614,21.97234045,126.46,126.41,21.97234045]
[1741828694820,21.97234045,126.47,126.41,21.97234045]
[1741828695219,21.97234045,126.47,126.42,7.9101]
[1741828695422,21.97234045,126.46,126.41,29.88304045]
[1741828696005,21.97234045,126.46,126.41,21.97234045]
[1741828696205,21.97234045,126.44,126.39,27.9118]
[1741828696417,21.97234045,126.44,126.39,21.97234045]
[1741828696823,27.6745,126.47,126.38,0.063]
[1741828696824,21.97234045,126.45,126.4,21.97234045]
[1741828697026,21.97234045,126.45,126.41,7.9106]
[1741828697335,29.88064045,126.45,126.4,21.97234045]
[1741828697505,29.88064045,126.45,126.39,21.97234045]
[1741828697699,21.97234045,126.44,126.39,21.97234045]
[1741828697926,29.88064045,126.45,126.39,21.97234045]
[1741828698123,21.97234045,126.45,126.4,29.88364045]
[1741828698513,29.88064045,126.45,126.39,21.97234045]
[1741828698721,21.97234045,126.44,126.39,21.97234045]
[1741828698915,29.88064045,126.45,126.4,21.97234045]
[1741828700006,21.97234045,126.46,126.4,29.88344045]
[1741828700209,29.87984045,126.47,126.41,21.97234045]
[1741828700516,21.97234045,126.46,126.41,21.97234045]
[1741828700713,21.97234045,126.48,126.42,21.97234045]
[1741828701121,21.97234045,126.46,126.41,21.97234045]
[1741828701628,21.97234045,126.47,126.41,29.88294045]
[1741828701810,21.97234045,126.47,126.41,21.97234045]
[1741828702211,21.97234045,126.45,126.4,21.97234045]
[1741828702415,21.97234045,126.44,126.38,0.063]
[1741828702627,21.97234045,126.44,126.38,22.03534045]
[1741828703313,29.21234045,126.44,126.38,0.063]
[1741828703517,37.12114045,126.44,126.38,0.063]
[1741828704837,37.12114045,126.44,126.39,21.97234045]
[1741828705041,15.1488,126.44,126.39,21.97234045]
[1741828705208,29.88114045,126.44,126.39,21.97234045]
[1741828707821,29.88114045,126.44,126.38,22.03534045]
[1741828708639,29.88114045,126.44,126.38,0.063]
[1741828708845,29.88114045,126.44,126.43,0.0001]
[1741828709222,30.02330202,126.44,126.43,0.0001]
[1741828711645,48.81511245,126.44,126.43,0.0001]
[1741828712344,30.02330202,126.44,126.43,0.0001]
[1741828713620,7.9088,126.44,126.43,0.0001]
[1741828713943,30.02330202,126.44,126.43,0.0001]
[1741828716145,48.81511245,126.44,126.43,0.0001]
[1741828719944,18.933972,126.43,126.38,0.063]
[1741828720142,21.97234045,126.39,126.38,0.063]
[1741828720349,14.10581303,126.39,126.38,0.063]
[1741828721547,22.01781303,126.39,126.38,0.063]
[1741828721854,22.1599746,126.39,126.38,0.0001]
[1741828722232,30.09672124,126.39,126.38,0.0001]
[1741828723642,29.95455967,126.39,126.38,0.0001]
[1741828725660,48.88853167,126.39,126.38,0.0001]
[1741828725828,0.14216157,126.38,126.37,0.0001]
[1741828726152,40.97653167,126.38,126.37,0.0001]
[1741828727931,48.88913167,126.38,126.37,0.0001]
[1741828733452,70.93169134,126.38,126.37,0.0001]
[1741828733960,70.93169134,126.38,126.3,0.063]
[1741828733961,18.933972,126.36,126.3,0.063]
[1741828734155,22.18472124,126.31,126.3,0.063]
[1741828734541,27.7085,126.32,126.28,6.0867]
[1741828734741,22.18472124,126.31,126.28,6.0867]
[1741828735147,22.04255967,126.3,126.28,6.0867]
[1741828735348,22.04255967,126.31,126.28,6.0867]
[1741828737259,7.9176,126.3,126.28,6.0867]
[1741828737965,22.04255967,126.32,126.28,6.0867]
[1741828738153,29.95765967,126.34,126.29,22.04255967]
[1741828738465,29.95765967,126.34,126.28,28.12925967]
[1741828738839,7.9151,126.34,126.3,22.04255967]
[1741828739467,7.9151,126.34,126.29,22.04255967]
[1741828739956,29.95765967,126.34,126.29,22.04255967]
[1741828740564,7.9151,126.34,126.29,22.04255967]
[1741828740761,7.9151,126.34,126.3,22.04255967]
[1741828740960,7.9151,126.34,126.31,1.5498]
[1741828744572,22.04255967,126.32,126.29,0.063]
[1741828744947,22.04255967,126.33,126.29,0.063]
[1741828745170,22.04255967,126.32,126.29,0.063]
[1741828745348,22.18472124,126.3,126.29,0.063]
[1741828747375,30.10232124,126.3,126.29,0.063]
[1741828750070,29.96015967,126.3,126.29,0.063]
[1741828750260,7.9176,126.3,126.29,0.063]
[1741828750970,7.917,126.31,126.29,0.063]
[1741828752280,18.933972,126.33,126.29,0.063]
[1741828752281,29.95825967,126.33,126.29,0.063]
[1741828752473,7.9157,126.33,126.29,22.10555967]
[1741828753264,7.9157,126.33,126.3,1.5779]
[1741828753980,29.95715967,126.35,126.3,23.62045967]
[1741828754174,7.9146,126.35,126.31,22.04255967]
[1741828754784,37.19665967,126.36,126.31,22.04255967]
[1741828755076,22.04255967,126.35,126.3,23.62045967]
[1741828755457,37.19665967,126.36,126.31,22.04255967]
[1741828756079,29.95665967,126.36,126.31,22.04255967]
[1741828757078,29.98665967,126.36,126.31,22.04255967]
[1741828757468,29.98665967,126.36,126.3,23.62045967]
[1741828757657,22.04255967,126.35,126.3,23.62045967]
[1741828757978,22.04255967,126.34,126.3,1.5779]
[1741828758485,29.95705967,126.35,126.3,1.5779]
[1741828760381,22.0284142,126.35,126.3,15.6918142]
[1741828760577,7.9145,126.35,126.3,15.6918142]
[1741828761378,7.9438,126.36,126.32,14.1139142]
[1741828761582,0.03,126.36,126.33,14.1139142]
[1741828762684,0.03,126.36,126.35,1.5627]
[1741828762884,0.03,126.36,126.35,22.1296142]
[1741828764160,0.03,126.36,126.35,14.1139142]
[1741828764374,22.07886935,126.36,126.31,8.0482]
[1741828764677,22.04886935,126.35,126.31,8.0482]
[1741828766283,7.9151,126.34,126.31,8.0482]
[1741828768679,49.75176935,126.34,126.31,6.4358]
[1741828768870,22.04886935,126.33,126.31,6.4358]
[1741828769067,22.04886935,126.33,126.29,0.063]
[1741828769068,29.28886935,126.32,126.29,0.063]
[1741828769269,22.04886935,126.31,126.3,0.063]
[1741828770471,7.917,126.31,126.3,0.063]
[1741828770781,15.1564,126.32,126.3,0.063]
[1741828772162,37.20526935,126.32,126.3,0.063]
[1741828772669,15.1564,126.32,126.3,0.063]
[1741828772971,37.20526935,126.32,126.3,0.063]
[1741828773991,56.99626935,126.32,126.29,0.063]
[1741828774495,22.19103092,126.3,126.29,0.0001]
[1741828775292,40.98284135,126.3,126.29,0.0001]
[1741828775595,47.45058809,126.3,126.29,0.0001]
[1741828775886,69.49945744,126.3,126.29,0.0001]
[1741828776088,63.0317107,126.3,126.29,0.0001]
[1741828776299,72.4679107,126.3,126.29,0.0001]
[1741828776464,20.14216157,126.26,126.25,0.0001]
[1741828776789,68.22284135,126.26,126.25,0.0001]
[1741828776967,29.28886935,126.26,126.25,0.0001]
[1741828777171,22.04886935,126.27,126.25,0.0001]
[1741828777696,29.28886935,126.29,126.25,0.0001]
[1741828778188,7.9176,126.3,126.25,28.17566935]
[1741828778988,22.19103092,126.29,126.25,6.1268]
[1741828779494,22.04886935,126.29,126.25,6.1268]
[1741828779684,7.9176,126.3,126.25,28.17566935]
[1741828779882,29.96596935,126.31,126.25,28.17566935]
[1741828780573,22.04886935,126.3,126.25,6.1268]
[1741828781094,22.04886935,126.3,126.25,28.17566935]
[1741828782101,29.96696935,126.3,126.25,28.17566935]
[1741828784099,7.9181,126.3,126.25,28.17566935]
[1741828784398,29.96696935,126.3,126.25,28.17566935]
[1741828784698,7.9181,126.3,126.25,28.17566935]
[1741828785695,7.24,126.32,126.27,22.04886935]
[1741828785894,7.24,126.32,126.28,22.04886935]
[1741828786099,15.1564,126.32,126.27,22.04886935]
[1741828786279,37.20526935,126.32,126.27,22.04886935]
[1741828786480,22.19103092,126.31,126.26,22.04886935]
[1741828786697,22.04886935,126.3,126.25,6.1268]
[1741828787279,22.04886935,126.3,126.25,28.17566935]
[1741828787797,7.9178,126.3,126.25,28.17566935]
[1741828788300,7.9178,126.3,126.25,36.09636935]
[1741828788595,7.917,126.31,126.27,22.04886935]
[1741828788988,7.9165,126.32,126.28,22.04886935]
[1741828789196,7.9165,126.32,126.27,22.04886935]
[1741828790201,7.9165,126.32,126.27,29.96816935]
[1741828790503,7.9165,126.32,126.28,22.04886935]
[1741828791206,7.9165,126.32,126.25,6.1268]
[1741828791207,7.9165,126.32,126.27,29.96836935]
[1741828791383,7.9165,126.32,126.28,22.04886935]
[1741828792117,7.9165,126.32,126.27,22.04886935]
[1741828792400,7.9151,126.34,126.29,22.04886935]
[1741828792591,29.96396935,126.34,126.29,22.04886935]
[1741828792776,7.9151,126.34,126.29,22.04886935]
[1741828793406,7.9445,126.35,126.3,22.04886935]
[1741828793588,7.9445,126.35,126.31,22.04886935]
[1741828794400,0.03,126.32,126.31,22.04886935]
[1741828794981,0.03,126.32,126.3,22.04886935]
[1741828797602,0.03,126.32,126.28,7.7572]
[1741828797795,0.03,126.32,126.28,29.80606935]
[1741828798903,7.9464,126.32,126.28,29.80606935]
[1741828799633,7.9464,126.32,126.29,22.04886935]
[1741828800887,0.03,126.32,126.29,22.04886935]
[1741828802105,22.07886935,126.32,126.28,7.7572]
[1741828802306,22.04886935,126.31,126.28,6.1444]
[1741828802496,22.04886935,126.3,126.25,23.60766935]
[1741828803212,7.9182,126.29,126.25,23.60766935]
[1741828804106,7.9182,126.29,126.25,1.5588]
[1741828804408,7.9182,126.29,126.26,22.04886935]
[1741828804727,7.917,126.31,126.26,22.04886935]
[1741828805297,7.9466,126.32,126.29,22.04886935]
[1741828805912,0.03,126.32,126.29,22.04886935]
[1741828806114,0.03,126.3,126.29,22.04886935]
[1741828808213,0.03,126.3,126.29,28.24936935]
[1741828808416,0.03,126.3,126.29,36.16756935]
[1741828808594,0.03,126.3,126.25,7.7593]
[1741828808795,0.03,126.3,126.26,22.04886935]
[1741828809015,0.03,126.3,126.25,29.80816935]
[1741828809220,22.07886935,126.3,126.25,29.80816935]
[1741828809799,0.03,126.3,126.26,22.04886935]
[1741828810324,0.03,126.3,126.27,22.04886935]
[1741828811317,0.03,126.3,126.25,15.6798]
[1741828811318,0.03,126.3,126.28,22.04886935]
[1741828812001,0.03,126.3,126.29,22.04886935]
[1741828814331,0.03,126.3,126.28,7.9187]
[1741828814332,0.03,126.3,126.28,22.04886935]
[1741828814679,0.03,126.3,126.26,22.04886935]
[1741828815437,0.03,126.3,126.27,22.04886935]
[1741828815717,0.03,126.3,126.29,22.04886935]
[1741828815918,0.03,126.3,126.28,22.04886935]
[1741828816327,0.03,126.3,126.29,22.04886935]
[1741828817400,0.03,126.3,126.28,22.04886935]
[1741828818327,0.03,126.3,126.29,22.04886935]
[1741828820518,0.03,126.3,126.29,42.04886935]
[1741828821020,0.03,126.3,126.29,22.04886935]
[1741828821218,0.03,126.3,126.28,22.04886935]
[1741828821414,0.03,126.3,126.25,7.7593]
[1741828821718,22.07886935,126.3,126.25,7.7593]
[1741828822327,22.04886935,126.27,126.25,0.0001]
[1741828823025,22.19103092,126.28,126.25,0.0001]
[1741828823218,22.04886935,126.28,126.25,0.0001]
[1741828823803,27.7139,126.29,126.25,0.0001]
[1741828824000,49.76276935,126.29,126.25,0.0001]
[1741828824428,22.04886935,126.28,126.25,0.0001]
[1741828826318,22.04886935,126.27,126.25,0.0001]
[1741828827632,49.76496935,126.28,126.25,0.0001]
[1741828829432,19.7972,126.28,126.25,0.0001]
[1741828830126,41.84606935,126.28,126.25,0.0001]
[1741828830635,29.96706935,126.29,126.25,0.0001]
[1741828831131,7.9182,126.29,126.25,22.04896935]
[1741828831532,7.9476,126.3,126.25,22.04896935]
[1741828831914,7.9476,126.3,126.26,28.69936935]
[1741828833738,7.9476,126.3,126.27,22.04886935]
[1741828834033,7.9476,126.3,126.26,28.69936935]
[1741828834339,29.99646935,126.3,126.26,6.6505]
[1741828834835,7.9476,126.3,126.26,6.6505]
[1741828835038,7.9476,126.3,126.26,28.69936935]
[1741828836137,7.9476,126.3,126.26,6.6505]
[1741828836622,27.7417,126.3,126.26,6.6505]
[1741828839735,7.9476,126.3,126.26,28.69936935]
[1741828839927,0.03,126.3,126.27,22.04886935]
[1741828841631,0.03,126.3,126.28,22.04886935]
[1741828843122,0.03,126.3,126.27,22.04886935]
[1741828846353,0.03,126.3,126.28,22.04886935]
[1741828847154,0.03,126.3,126.29,22.04886935]
[1741828848356,0.03,126.3,126.29,14.11467409]
[1741828854063,0.03,126.3,126.29,22.03287409]
[1741828855869,0.03,126.3,126.29,112.47838088]
[1741828857269,0.03,126.3,126.29,112.62054245]
[1741828857659,0.03,126.32,126.31,20.0]
[1741828857847,0.03,126.32,126.31,59.63704609]
[1741828860368,0.03,126.32,126.31,40.70307409]
[1741828860878,0.03,126.32,126.29,15.66667409]
[1741828861377,0.03,126.32,126.29,14.11467409]
[1741828863552,14.11467409,126.31,126.25,0.0001]
[1741828863858,15.65507409,126.32,126.26,14.11467409]
[1741828864251,22.06668753,126.31,126.26,22.06668753]
[1741828864962,23.60708753,126.32,126.27,22.06668753]
[1741828865167,1.5404,126.32,126.28,22.06668753]
[1741828865349,0.03,126.32,126.29,22.06668753]
[1741828865756,0.03,126.32,126.26,18.79181043]
[1741828865757,0.03,126.32,126.3,22.06668753]
[1741828865962,0.03,126.32,126.29,22.06668753]
[1741828866169,7.9465,126.32,126.29,22.06668753]
[1741828866370,0.03,126.32,126.29,22.06668753]
[1741828867574,0.03,126.32,126.28,22.06668753]
[1741828868158,0.03,126.32,126.27,22.06668753]
[1741828868362,22.09668753,126.32,126.26,22.06668753]
[1741828868560,22.06668753,126.31,126.26,22.06668753]
[1741828870476,22.09668753,126.32,126.27,22.06668753]
[1741828870652,7.917,126.31,126.27,22.06668753]
[1741828873175,0.03,126.32,126.27,22.06668753]
[1741828873378,7.9464,126.32,126.27,22.06668753]
[1741828874863,7.9464,126.32,126.27,22.12968753]
[1741828875378,49.80408753,126.32,126.27,22.12968753]
[1741828875559,27.7374,126.32,126.27,22.12968753]
[1741828875754,49.80408753,126.32,126.27,0.063]
[1741828876079,22.06668753,126.31,126.27,0.063]
[1741828877083,27.7117,126.3,126.27,0.063]
[1741828878378,49.77838753,126.3,126.27,0.063]
[1741828878582,40.85849796,126.28,126.27,0.0001]
[1741828878760,40.85849796,126.28,126.25,0.0001]
[1741828878761,18.933972,126.27,126.24,0.0001]
[1741828878961,41.00065953,126.25,126.24,0.0001]
[1741828879166,42.51915953,126.25,126.24,0.0001]
[1741828879782,64.58584706,126.25,126.24,0.0001]
[1741828879986,64.58584706,126.25,126.18,0.063]
[1741828879987,22.06668753,126.2,126.18,0.063]
[1741828880184,40.85849796,126.19,126.18,0.063]
[1741828880360,22.06668753,126.19,126.18,0.063]
[1741828880569,22.06668753,126.2,126.18,0.063]
[1741828881090,7.9245,126.19,126.18,0.063]
[1741828881390,29.99118753,126.19,126.18,0.063]
[1741828881983,22.06668753,126.21,126.18,0.063]
[1741828882286,29.98998753,126.21,126.18,0.063]
[1741828882488,22.06668753,126.19,126.18,0.063]
[1741828882974,29.99118753,126.19,126.18,0.063]
[1741828884769,7.9245,126.19,126.18,0.063]
[1741828884985,29.99118753,126.19,126.18,0.063]
[1741828885169,22.06668753,126.21,126.18,0.063]
[1741828885488,7.9226,126.22,126.18,0.063]
[1741828885691,7.9226,126.22,126.18,22.12968753]
[1741828886391,29.98928753,126.22,126.18,0.063]
[1741828886780,7.9226,126.22,126.18,22.12968753]
[1741828886972,29.28668753,126.24,126.18,22.12968753]
[1741828887179,7.922,126.23,126.18,22.12968753]
[1741828887578,7.922,126.23,126.18,0.063]
[1741828887579,22.06668753,126.22,126.18,0.063]
[1741828887780,22.06668753,126.21,126.18,0.063]
[1741828888278,22.06668753,126.2,126.18,0.063]
[1741828888481,0.14216157,126.21,126.18,0.063]
[1741828888482,22.06668753,126.19,126.18,0.063]
[1741828888789,22.06668753,126.2,126.18,0.063]
[1741828889101,29.99058753,126.2,126.18,0.063]
[1741828889403,29.99058753,126.2,126.15,21.81868753]
[1741828890285,29.99058753,126.2,126.14,22.12968753]
[1741828890489,22.06668753,126.19,126.14,0.063]
[1741828891194,7.9251,126.18,126.14,0.063]
[1741828895098,49.80468753,126.18,126.14,0.063]
[1741828895409,22.06668753,126.16,126.14,0.063]
[1741828895581,22.06668753,126.15,126.14,0.063]
[1741828896000,40.85849796,126.15,126.14,0.0001]
[1741828896202,41.00065953,126.15,126.14,0.0001]
[1741828896413,0.14216157,126.14,126.12,0.0001]
[1741828896578,40.85849796,126.13,126.12,0.0001]
[1741828897003,48.78679796,126.13,126.12,0.0001]
[1741828897310,7.9283,126.13,126.12,0.0001]
[1741828898007,7.22,126.14,126.12,0.0001]
[1741828898186,15.1478,126.14,126.12,0.0001]
[1741828898695,22.06668753,126.15,126.12,0.0001]
[1741828898895,37.21178753,126.18,126.12,22.06678753]
[1741828899105,22.06668753,126.17,126.12,22.06678753]
[1741828899306,22.06668753,126.16,126.12,0.0001]
[1741828900095,37.21178753,126.18,126.13,22.06668753]
[1741828900490,37.21178753,126.18,126.12,22.06678753]
[1741828900892,37.21178753,126.18,126.13,22.06668753]
[1741828901593,37.21178753,126.18,126.12,22.06678753]
[1741828903518,22.06668753,126.16,126.12,0.0001]
[1741828904600,7.927,126.15,126.12,0.0001]
[1741828906321,29.99368753,126.15,126.12,0.0001]
[1741828907023,7.927,126.15,126.12,0.0001]
[1741828907412,29.99368753,126.15,126.12,0.0001]
[1741828908904,22.06668753,126.13,126.12,0.0001]
[1741828909527,49.81128753,126.15,126.12,0.0001]
[1741828912731,22.06668753,126.14,126.12,0.0001]
[1741828913036,40.85849796,126.13,126.12,0.0001]
[1741828913221,0.14216157,126.12,126.11,0.0001]
[1741828913545,22.2088491,126.12,126.11,0.0001]
[1741828914341,90.81854706,126.12,126.05,0.063]
[1741828914541,22.06668753,126.09,126.05,0.063]
[1741828915808,48.07849796,126.11,126.05,0.063]
[1741828916129,7.9302,126.1,126.05,22.12968753]
[1741828916337,22.06668753,126.13,126.07,22.06668753]
[1741828916632,29.99428753,126.14,126.08,28.50848753]
[1741828916808,29.99428753,126.14,126.09,22.06668753]
[1741828917432,22.06668753,126.13,126.08,28.50848753]
[1741828917640,22.06668753,126.12,126.08,6.4418]
[1741828917808,40.85849796,126.13,126.08,6.4418]
[1741828918528,7.9289,126.12,126.08,6.4418]
[1741828919641,29.99558753,126.12,126.08,6.4418]
[1741828922245,22.06668753,126.09,126.08,0.03]
[1741828922826,29.99748753,126.09,126.08,0.03]
[1741828923340,7.9308,126.09,126.08,0.03]
[1741828923546,15.1504,126.1,126.08,0.03]
[1741828924245,7.22,126.1,126.08,0.03]
[1741828924548,15.1504,126.1,126.08,0.03]
[1741828926821,22.06668753,126.09,126.08,0.03]
[1741828928645,22.06668753,126.09,126.06,0.063]
[1741828928953,22.06668753,126.08,126.06,0.063]
[1741828929149,0.14216157,126.07,126.06,0.063]
[1741828929341,0.14216157,126.07,126.06,0.0001]
[1741828929342,40.85849796,126.07,126.06,0.0001]
[1741828930450,29.99878753,126.07,126.06,0.0001]
[1741828930852,48.79059796,126.07,126.05,0.0001]
[1741828931024,40.85849796,126.06,126.05,0.0001]
[1741828931421,38.933972,126.02,125.99,2.8984022]
[1741828931626,22.06668753,126.0,125.99,2.8984022]
[1741828932355,48.79499796,126.0,125.99,2.2e-06]
[1741828933055,30.00318753,126.0,125.99,2.2e-06]
[1741828933234,22.06668753,126.02,125.99,2.2e-06]
[1741828933551,22.06668753,126.01,125.99,2.2e-06]
[1741828933932,22.06668753,126.0,125.99,2.2e-06]
[1741828934335,30.00318753,126.0,125.99,2.2e-06]
[1741828934534,7.9365,126.0,125.99,2.2e-06]
[1741828934798,30.00318753,126.0,125.99,2.2e-06]
[1741828935254,48.79499796,126.0,125.99,2.2e-06]
[1741828935743,71.00384706,126.0,125.99,2.2e-06]
[1741828937054,18.79181043,125.95,125.92,0.03]
[1741828937354,41.00065953,125.93,125.92,0.03]
[1741828937838,22.06668753,125.93,125.92,0.03]
[1741828938728,7.9404,125.94,125.92,0.03]
[1741828938952,30.00708753,125.94,125.92,0.03]
[1741828939329,41.00065953,125.93,125.92,0.03]
[1741828939530,30.00708753,125.94,125.92,0.03]
[1741828940029,22.06668753,125.93,125.92,0.03]
[1741828940451,30.00758753,125.93,125.92,0.03]
[1741828942045,48.94155953,125.93,125.92,0.03]
[1741828942742,22.06668753,125.9,125.86,7.9998]
[1741828942940,22.06668753,125.88,125.86,6.4669]
[1741828943140,22.06668753,125.87,125.83,6.3729]
[1741828943338,22.06668753,125.84,125.83,6.3729]
[1741828943655,41.00065953,125.84,125.81,1.6229]
[1741828943858,22.06668753,125.83,125.8,6.3729]
[1741828944244,35.58127552,125.82,125.8,6.3729]
[1741828944759,43.52847552,125.83,125.8,6.3729]
[1741828945145,18.933972,125.82,125.8,6.3729]
[1741828945451,43.52847552,125.83,125.8,6.3729]
[1741828945841,35.58127552,125.82,125.8,6.3729]
[1741828946246,43.52847552,125.83,125.8,6.3729]
[1741828946634,62.46364752,125.81,125.78,1.6229]
[1741828946839,35.86559866,125.79,125.77,6.3189]
[1741828947146,35.58127552,125.79,125.77,6.3189]
[1741828947346,18.79181043,125.8,125.77,6.3189]
[1741828947347,54.37308595,125.8,125.77,6.3189]
[1741828947544,35.58127552,125.79,125.77,6.3189]
[1741828947771,18.79181043,125.8,125.77,6.3189]
[1741828947957,35.58127552,125.79,125.77,6.3189]
[1741828948258,18.79181043,125.8,125.77,6.3189]
[1741828948259,54.37308595,125.8,125.77,6.3189]
[1741828948635,7.9503,125.78,125.77,6.3189]
[1741828948836,35.58127552,125.8,125.77,6.3189]
[1741828949043,50.91203709,125.81,125.77,6.3189]
[1741828949949,50.91203709,125.81,125.74,4.4169022]
[1741828949950,54.37308595,125.79,125.74,10.7323022]
[1741828950150,35.58127552,125.76,125.74,9.1838022]
[1741828950451,35.58127552,125.77,125.74,9.1838022]